{"text_format":"3","workbook":"xlsx","n_sheets":4,"sheets":["Bắt đầu","Chi phí","Thu nhập","Tóm tắt lãi - lỗ"],"not_rendered":{"charts":1},"read":"whole","date_system":"1900"}

{"sheet":"Bắt đầu","index":0,"n_rows":8,"n_cols":2,"rows_kept":8}
[null,"GIỚI THIỆU VỀ MẪU NÀY"]
[null,"Sử dụng sổ làm việc Ngân sách sự kiện này để theo dõi Chi phí phát sinh và Thu nhập có được từ sự kiện."]
[null,"Điền Tên sự kiện và nhập chi tiết vào các bảng trong trang tính Chi phí và trang tính Thu nhập."]
[null,"Tổng chi phí và Tổng thu nhập được tính toán tự động."]
[null,"Tóm tắt và Biểu đồ lãi & lỗ được cập nhật tự động trong trang tính Tóm tắt lãi-lỗ."]
[null,"Lưu ý: "]
[null,"Hướng dẫn bổ sung được cung cấp ở cột A trong từng trang tính. Văn bản này đã được ẩn một cách chủ ý. Để xóa văn bản, chọn cột A, rồi chọn XÓA. "]
[null,"Để tìm hiểu thêm về các bảng, hãy nhấn SHIFT, rồi F10 trong một bảng, chọn tùy chọn BẢNG, rồi chọn VĂN BẢN THAY THẾ"]

{"sheet":"Chi phí","index":1,"n_rows":32,"n_cols":8,"rows_kept":32,"merged":[[0,1,0,2],[0,3,0,4],[2,1,3,1]]}
["Nhập Chi phí ước tính và thực tế cho từng danh mục vào bảng tương ứng trong trang tính này và nhập Tên sự kiện vào ô D1 để tùy chỉnh tiêu đề của trang tính này và các trang tính khác. Tiêu đề phụ của trang tính này nằm trong ô H1. Hướng dẫn hữu ích về cách sử dụng trang tính này nằm ở các ô trong cột này. Hướng dẫn tiếp theo nằm trong ô A3.","Ngân sách sự kiện cho",null,"Tên sự kiện",{"$nulls":3},"CHI PHÍ"]
[]
["Nhãn Tổng chi phí nằm trong ô bên phải, nhãn Ước tính nằm trong ô G3 còn nhãn Thực tế nằm trong ô H3.","TỔNG CHI PHÍ",{"$nulls":4},"Ước tính","Thực tế"]
["Tổng chi phí ước tính nằm trong ô G4 và Tổng chi phí thực tế nằm trong ô H4 được tính toán tự động. Hướng dẫn tiếp theo nằm trong ô A6.",{"$nulls":5},{"$f":"SUM(C11,C19,C25,C32,G11,G19,G24)","v":{"v":882,"d":"882.00 ₫"}},{"$f":"SUM(D11,D19,D25,D32,H11,H19,H24)","v":{"v":302,"d":"302.00 ₫"}}]
[]
["Nhập Chi phí hiện trường vào bảng bắt đầu từ ô bên phải và Chi phí đồ ăn uống nhẹ vào bảng bắt đầu từ ô F6. Hướng dẫn tiếp theo nằm trong ô A13.","Hiện trường","Ước tính","Thực tế",null,"Đồ ăn uống nhẹ","Ước tính","Thực tế"]
[null,"Phí phòng và hội trường",{"v":500,"d":"500.00 ₫"},null,null,"Đồ ăn"]
[null,"Nhân viên hiện trường",{"$nulls":3},"Đồ uống",{"v":20,"d":"20.00 ₫"}]
[null,"Thiết bị",{"$nulls":3},"Khăn trải bàn",null,{"v":20,"d":"20.00 ₫"}]
[null,"Bàn và ghế",{"$nulls":3},"Nhân viên và tiền thưởng"]
[null,"Tổng",{"$f":"SUBTOTAL(109,Chi_phí_hiện_trường[Ước tính])","v":{"v":500,"d":"500.00 ₫"}},{"$f":"SUBTOTAL(103,Chi_phí_hiện_trường[Thực tế])","v":{"v":0,"d":"0.00 ₫"}},null,"Tổng",{"$f":"SUBTOTAL(109,Chi_phí_đồ_ăn_uống_nhẹ[Ước tính])","v":{"v":20,"d":"20.00 ₫"}},{"$f":"SUBTOTAL(103,Chi_phí_đồ_ăn_uống_nhẹ[Thực tế])","v":{"v":1,"d":"1.00 ₫"}}]
[]
["Nhập Chi phí trang trí vào bảng bắt đầu từ ô bên phải và Chi phí chương trình vào bảng bắt đầu từ ô F13. Hướng dẫn tiếp theo nằm trong ô A21.","Đồ trang trí","Ước tính","Thực tế",null,"Chương trình","Ước tính","Thực tế"]
[null,"Hoa",{"v":200,"d":"200.00 ₫"},{"v":300,"d":"300.00 ₫"},null,"Người biểu diễn"]
[null,"Nến",{"$nulls":3},"Diễn giả",{"v":30,"d":"30.00 ₫"}]
[null,"Đèn",{"$nulls":3},"Đi lại"]
[null,"Bóng bay",{"$nulls":3},"Khách sạn"]
[null,"Vật dụng bằng giấy",{"$nulls":3},"Khác"]
[null,"Tổng",{"$f":"SUBTOTAL(109,Chi_phí_trang_trí[Ước tính])","v":{"v":200,"d":"200.00 ₫"}},{"$f":"SUBTOTAL(109,Chi_phí_trang_trí[Thực tế])","v":{"v":300,"d":"300.00 ₫"}},null,"Tổng",{"$f":"SUBTOTAL(109,Chi_phí_chương_trình[Ước tính])","v":{"v":30,"d":"30.00 ₫"}},{"$f":"SUBTOTAL(103,Chi_phí_chương_trình[Thực tế])","v":{"v":0,"d":"0.00 ₫"}}]
[]
["Nhập Chi phí quảng bá vào bảng bắt đầu từ ô bên phải và Chi phí giải thưởng vào bảng bắt đầu từ ô F21. Hướng dẫn tiếp theo nằm trong ô A27","Quảng bá","Ước tính","Thực tế",null,"Giải thưởng","Ước tính","Thực tế"]
[null,"Tác phẩm đồ họa",{"$nulls":3},"Dải băng/Kỷ niệm chương/Cúp"]
[null,"Sao chép/in",{"v":20,"d":"20.00 ₫"},null,null,"Quà tặng",{"v":100,"d":"100.00 ₫"}]
[null,"Bưu phí",{"$nulls":3},"Tổng",{"$f":"SUBTOTAL(109,Chi_phí_giải_thưởng[Ước tính])","v":{"v":100,"d":"100.00 ₫"}},{"$f":"SUBTOTAL(103,Chi_phí_giải_thưởng[Thực tế])","v":{"v":0,"d":"0.00 ₫"}}]
[null,"Tổng",{"$f":"SUBTOTAL(109,Chi_phí_dịch_vụ_quảng_bá[Ước tính])","v":{"v":20,"d":"20.00 ₫"}},{"$f":"SUBTOTAL(103,Chi_phí_dịch_vụ_quảng_bá[Thực tế])","v":{"v":0,"d":"0.00 ₫"}}]
[]
["Nhập Chi phí khác vào bảng bắt đầu từ ô bên phải.","Khác","Ước tính","Thực tế"]
[null,"Điện thoại",null,{"v":13,"d":"13.00 ₫"}]
[null,"Đi lại",{"v":12,"d":"12.00 ₫"}]
[null,"Văn phòng phẩm"]
[null,"Dịch vụ fax"]
[null,"Tổng",{"$f":"SUBTOTAL(109,Chi_phí_tổng_hợp[Ước tính])","v":{"v":12,"d":"12.00 ₫"}},{"$f":"SUBTOTAL(103,Chi_phí_tổng_hợp[Thực tế])","v":{"v":1,"d":"1.00 ₫"}}]

{"sheet":"Thu nhập","index":2,"n_rows":29,"n_cols":7,"rows_kept":29,"merged":[[0,1,0,2],[2,1,3,1]]}
["Nhập Thu nhập ước tính và thực tế từ từng danh mục vào các bảng tương ứng trong trang tính này. Tiêu đề của trang tính này được cập nhật tự động trong các ô bên phải. Tiêu đề phụ nằm trong ô G1. Hướng dẫn hữu ích về cách sử dụng trang tính này nằm ở các ô trong cột này. Hướng dẫn tiếp theo nằm trong ô A3.",{"$f":"'Chi phí'!B1","v":"Ngân sách sự kiện cho"},null,{"$f":"'Chi phí'!D1","v":"Tên sự kiện"},null,null,"THU NHẬP"]
[]
["Nhãn Tổng thu nhập nằm trong ô bên phải, nhãn Ước tính nằm trong ô F3 còn nhãn Thực tế nằm trong ô G3.","TỔNG THU NHẬP",{"$nulls":3},"Ước tính","Thực tế"]
["Tổng thu nhập ước tính được tính toán tự động trong ô F4 còn Tổng thu nhập thực tế được tính toán tự động trong ô G4.",{"$nulls":4},{"$f":"SUM(Phí_vào_cửa[[#Totals],[Thu nhập ước tính]],Quảng_cáo_trong_chương_trình[[#Totals],[Thu nhập ước tính]],Người_tham_gia_triển_lãm_và_nhà_cung_cấp[[#Totals],[Thu nhập ước tính]],Hàng_bán_ra[[#Totals],[Thu nhập ước tính]])","v":{"v":1936,"d":"1,936.00 ₫"}},{"$f":"SUM(Phí_vào_cửa[[#Totals],[Thu nhập thực tế]],Quảng_cáo_trong_chương_trình[[#Totals],[Thu nhập thực tế]],Người_tham_gia_triển_lãm_và_nhà_cung_cấp[[#Totals],[Thu nhập thực tế]],Hàng_bán_ra[[#Totals],[Thu nhập thực tế]])","v":{"v":1831,"d":"1,831.00 ₫"}}]
["Nhãn Phí vào cửa nằm trong ô bên phải.","PHÍ VÀO CỬA"]
["Nhập Số lượt vào cửa ước tính và thực tế cùng với giá vé vào bảng bắt đầu từ ô bên phải. Thu nhập ước tính và thực tế từ Phí vào cửa được tính toán tự động. Hướng dẫn tiếp theo nằm trong ô A11.","Số ước tính","Số thực tế","Loại","Giá","Thu nhập ước tính","Thu nhập thực tế"]
[null,300,278,"Người lớn @",{"v":5,"d":"5.00 ₫"},{"$f":"B7*E7","v":{"v":1500,"d":"1,500.00 ₫"}},{"$f":"C7*E7","v":{"v":1390,"d":"1,390.00 ₫"}}]
[null,197,195,"Trẻ em @",{"v":2,"d":"2.00 ₫"},{"$f":"B8*E8","v":{"v":394,"d":"394.00 ₫"}},{"$f":"C8*E8","v":{"v":390,"d":"390.00 ₫"}}]
[null,42,51,"Khác @",{"v":1,"d":"1.00 ₫"},{"$f":"B9*E9","v":{"v":42,"d":"42.00 ₫"}},{"$f":"C9*E9","v":{"v":51,"d":"51.00 ₫"}}]
[null,"Tổng",{"$nulls":3},{"$f":"SUBTOTAL(109,Phí_vào_cửa[Thu nhập ước tính])","v":{"v":1936,"d":"1,936.00 ₫"}},{"$f":"SUBTOTAL(109,Phí_vào_cửa[Thu nhập thực tế])","v":{"v":1831,"d":"1,831.00 ₫"}}]
["Nhãn Quảng cáo trong chương trình nằm trong ô bên phải.","QUẢNG CÁO TRONG CHƯƠNG TRÌNH"]
["Nhập Số lượng quảng cáo ước tính và thực tế trong chương trình và Giá quảng cáo vào bảng bắt đầu từ ô bên phải. Thu nhập ước tính và thực tế từ quảng cáo được tính toán tự động. Hướng dẫn tiếp theo nằm trong ô A17.","Số ước tính","Số thực tế","Loại","Giá","Thu nhập ước tính","Thu nhập thực tế"]
[null,12,null,"Bìa @",null,{"$f":"B13*E13","v":{"v":0,"d":"0.00 ₫"}},{"$f":"C13*E13","v":{"v":0,"d":"0.00 ₫"}}]
[null,null,158,"Nửa trang @",null,{"$f":"B14*E14","v":{"v":0,"d":"0.00 ₫"}},{"$f":"C14*E14","v":{"v":0,"d":"0.00 ₫"}}]
[null,4,null,"Một phần tư trang @",null,{"$f":"B15*E15","v":{"v":0,"d":"0.00 ₫"}},{"$f":"C15*E15","v":{"v":0,"d":"0.00 ₫"}}]
[null,"Tổng",{"$nulls":3},{"$f":"SUBTOTAL(109,Quảng_cáo_trong_chương_trình[Thu nhập ước tính])","v":{"v":0,"d":"0.00 ₫"}},{"$f":"SUBTOTAL(109,Quảng_cáo_trong_chương_trình[Thu nhập thực tế])","v":{"v":0,"d":"0.00 ₫"}}]
["Nhãn Người tham gia triển lãm hoặc Nhà cung cấp nằm trong ô bên phải.","NGƯỜI THAM GIA TRIỂN LÃM/NHÀ CUNG CẤP"]
["Nhập Số người tham gia triển lãm và nhà cung cấp ước tính và thực tế cũng như giá gian hàng vào bảng bắt đầu từ ô bên phải. Thu nhập ước tính và thực tế được tính toán tự động. Hướng dẫn tiếp theo nằm trong ô A23.","Số ước tính","Số thực tế","Loại","Giá","Thu nhập ước tính","Thu nhập thực tế"]
[null,23,null,"Gian hàng lớn @",null,{"$f":"B19*E19","v":{"v":0,"d":"0.00 ₫"}},{"$f":"C19*E19","v":{"v":0,"d":"0.00 ₫"}}]
[null,354,null,"Gian hàng trung bình @",null,{"$f":"B20*E20","v":{"v":0,"d":"0.00 ₫"}},{"$f":"C20*E20","v":{"v":0,"d":"0.00 ₫"}}]
[null,56,null,"Gian hàng nhỏ @",null,{"$f":"B21*E21","v":{"v":0,"d":"0.00 ₫"}},{"$f":"C21*E21","v":{"v":0,"d":"0.00 ₫"}}]
[null,"Tổng",{"$nulls":3},{"$f":"SUBTOTAL(109,Người_tham_gia_triển_lãm_và_nhà_cung_cấp[Thu nhập ước tính])","v":{"v":0,"d":"0.00 ₫"}},{"$f":"SUBTOTAL(109,Người_tham_gia_triển_lãm_và_nhà_cung_cấp[Thu nhập thực tế])","v":{"v":0,"d":"0.00 ₫"}}]
["Nhãn Hàng bán ra nằm trong ô bên phải.","HÀNG BÁN RA"]
["Nhập Số lượng hàng bán ra ước tính và thực tế cũng như giá của hàng vào bảng bắt đầu ở ô bên phải. Thu nhập ước tính và thực tế được tính toán tự động.","Số ước tính","Số thực tế","Loại","Giá","Thu nhập ước tính","Thu nhập thực tế"]
[{"$nulls":3},"Mặt hàng @",null,{"$f":"B25*E25","v":{"v":0,"d":"0.00 ₫"}},{"$f":"C25*E25","v":{"v":0,"d":"0.00 ₫"}}]
[null,123,null,"Mặt hàng @",null,{"$f":"B26*E26","v":{"v":0,"d":"0.00 ₫"}},{"$f":"C26*E26","v":{"v":0,"d":"0.00 ₫"}}]
[{"$nulls":3},"Mặt hàng @",null,{"$f":"B27*E27","v":{"v":0,"d":"0.00 ₫"}},{"$f":"C27*E27","v":{"v":0,"d":"0.00 ₫"}}]
[null,13,null,"Mặt hàng @",null,{"$f":"B28*E28","v":{"v":0,"d":"0.00 ₫"}},{"$f":"C28*E28","v":{"v":0,"d":"0.00 ₫"}}]
[null,"Tổng",{"$nulls":3},{"$f":"SUBTOTAL(109,Hàng_bán_ra[Thu nhập ước tính])","v":{"v":0,"d":"0.00 ₫"}},{"$f":"SUBTOTAL(109,Hàng_bán_ra[Thu nhập thực tế])","v":{"v":0,"d":"0.00 ₫"}}]

{"sheet":"Tóm tắt lãi - lỗ","index":3,"n_rows":8,"n_cols":7,"rows_kept":8,"merged":[[0,1,0,2]]}
["Tóm tắt và Biểu đồ lãi & lỗ thể hiện Tổng thu nhập và Tổng chi phí được cập nhật tự động trong trang tính này. Tiêu đề của trang tính này được cập nhật tự động trong các ô bên phải. Tiêu đề phụ nằm trong ô G1 và G2. Hướng dẫn hữu ích về cách sử dụng trang tính này nằm ở các ô trong cột này. Hướng dẫn tiếp theo nằm trong ô A3.",{"$f":"'Chi phí'!B1","v":"Ngân sách sự kiện cho"},null,{"$f":"'Chi phí'!D1","v":"Tên sự kiện"},null,null,"LÃI "]
[{"$nulls":6},"Tóm tắt lỗ"]
["Biểu đồ thanh so sánh Thu nhập và Chi phí ước tính với Thu nhập và Chi phí thực tế nằm trong ô E3.",{"$nulls":3},"Biểu đồ thanh so sánh Thu nhập và Chi phí ước tính với Thu nhập và Chi phí thực tế nằm trong ô này."]
["Bảng Tóm tắt bắt đầu từ ô bên phải sẽ được cập nhật tự động. Hướng dẫn tiếp theo nằm trong ô A8."," Tổng","Ước tính","Thực tế"]
[null,"Tổng thu nhập",{"$f":"'Thu nhập'!F10","v":{"v":1936,"d":"1,936.00 ₫"}},{"$f":"'Thu nhập'!F4","v":{"v":1936,"d":"1,936.00 ₫"}}]
[null,"Tổng chi phí",{"$f":"'Chi phí'!G4","v":{"v":882,"d":"882.00 ₫"}},{"$f":"'Chi phí'!H4","v":{"v":302,"d":"302.00 ₫"}}]
[]
["Tổng lãi hoặc lỗ ước tính được tính toán tự động trong ô C8 còn Tổng lãi hoặc lỗ thực tế được tính toán tự động trong ô D8.","Tổng lãi\n(hoặc lỗ)",{"$f":"C5-C6","v":{"v":1054,"d":"1,054.00 ₫"}},{"$f":"D5-D6","v":{"v":1634,"d":"1,634.00 ₫"}}]